fUST/lending_fUST_20241106
["ID","MTS","AMOUNT","RATE_DAILY","PERIOD"]
[341365698,1730839675554,-500.0,0.00041095,14]
[341365699,1730839675579,-500.0,0.00041095,14]
[341365700,1730839675603,-500.0,0.00041095,14]
[341365701,1730839675628,-500.0,0.00041095,14]
[341365702,1730839675652,-500.0,0.00041095,14]
[341365703,1730839675677,-500.0,0.00041095,14]
[341365704,1730839675702,-500.0,0.00041095,14]
[341365705,1730839675727,-500.0,0.00041095,14]
[341365706,1730839675751,-500.0,0.00041095,14]
[341365707,1730839675776,-500.0,0.00041095,14]
[341365708,1730839675800,-500.0,0.00041095,14]
[341365709,1730839675824,-500.0,0.00041095,14]
[341365710,1730839675848,-500.0,0.00041095,14]
[341365711,1730839675873,-500.0,0.00041095,14]
[341365712,1730839675897,-500.0,0.00041095,14]
[341365713,1730839675921,-500.0,0.00041095,14]
[341365714,1730839675951,-500.0,0.00041095,14]
[341365715,1730839675976,-500.0,0.00041095,14]
[341365716,1730839676002,-500.0,0.00041095,14]
[341365717,1730839676028,-500.0,0.00041095,14]
[341365718,1730839676053,-500.0,0.00041095,14]
[341365719,1730839676078,-500.0,0.00041095,14]
[341365720,1730839676102,-500.0,0.00041095,14]
[341365721,1730839676125,-500.0,0.00041095,14]
[341365722,1730839676148,-500.0,0.00041095,14]
[341365723,1730839676172,-500.0,0.00041095,14]
[341365724,1730839676201,-500.0,0.00041095,14]
[341365725,1730839676226,-500.0,0.00041095,14]
[341365726,1730839676251,-500.0,0.00041095,14]
[341365727,1730839676277,-500.0,0.00041095,14]
[341365728,1730839676300,-500.98375059,0.00041095,14]
[341365729,1730839676325,-500.0,0.00041095,14]
[341365730,1730839676348,-501.785324,0.00041095,14]
[341365731,1730839676372,-503.57234986,0.00041095,14]
[341365732,1730839676397,-500.0,0.00041095,14]
[341365733,1730839676421,-500.0,0.00041095,14]
[341365734,1730839676447,-500.0,0.00041095,14]
[341365735,1730839676471,-500.0,0.00041095,14]
[341365736,1730839676494,-500.0,0.00041095,14]
[341365737,1730839676519,-500.0,0.00041095,14]
[341365738,1730839676542,-502.9004759,0.00041095,14]
[341365739,1730839676565,-500.0,0.00041095,14]
[341365740,1730839676589,-500.0,0.00041095,14]
[341365741,1730839676614,-500.0,0.00041095,14]
[341365742,1730839676638,-500.0,0.00041095,14]
[341365743,1730839676662,-500.0,0.00041095,14]
[341365744,1730839676687,-500.0,0.00041095,14]
[341365745,1730839676712,-500.0,0.00041095,120]
[341365746,1730839676735,-500.0,0.00041095,14]
[341365747,1730839676759,-516.0668,0.00041095,120]
[341365748,1730839676781,-500.0,0.00041095,14]
[341365749,1730839676805,-525.82,0.00041095,14]
[341365750,1730839676829,-500.0,0.00041095,14]
[341365751,1730839676853,-500.0,0.00041095,14]
[341365752,1730839676877,-500.0,0.00041095,14]
[341365753,1730839676900,-500.0,0.00041095,14]
[341365754,1730839676925,-506.28255789,0.00041095,14]
[341365755,1730839676953,-500.0,0.00041095,14]
[341365756,1730839676978,-500.0,0.00041095,14]
[341365757,1730839677002,-500.0,0.00041095,14]
[341365758,1730839677028,-556.08,0.00041095,14]
[341365759,1730839677051,-501.8342484,0.00041095,14]
[341365760,1730839677075,-500.0,0.00041095,14]
[341365761,1730839677099,-500.0,0.00041095,14]
[341365762,1730839677124,-500.0,0.00041095,14]
[341365763,1730839677147,-500.0,0.00041095,14]
[341365764,1730839677171,-500.0,0.00041095,14]
[341365765,1730839677196,-500.0,0.00041095,14]
[341365766,1730839677219,-500.0,0.00041095,14]
[341365767,1730839677242,-500.0,0.00041095,14]
[341365768,1730839677266,-500.0,0.00041095,14]
[341365769,1730839677290,-500.0,0.00041095,14]
[341365770,1730839677314,-501.71184567,0.00041095,14]
[341365771,1730839677338,-500.0,0.00041095,14]
[341365772,1730839677362,-500.0,0.00041095,14]
[341365773,1730839677387,-500.0,0.00041095,14]
[341365774,1730839677410,-500.0,0.00041095,14]
[341365775,1730839677432,-500.0,0.00041095,14]
[341365776,1730839677455,-500.0,0.00041095,14]
[341365777,1730839677478,-508.14146953,0.00041095,14]
[341365778,1730839677503,-500.0,0.00041095,14]
[341365779,1730839677526,-500.0,0.00041095,14]
[341365780,1730839677551,-500.0,0.00041095,14]
[341365781,1730839677574,-500.0,0.00041095,14]
[341365782,1730839677597,-502.65966867,0.00041095,14]
[341365783,1730839677620,-500.0,0.00041095,14]
[341365784,1730839677644,-500.0,0.00041095,14]
[341365785,1730839677668,-501.17588802,0.00041095,14]
[341365786,1730839677799,-500.0,0.00041095,14]
[341365787,1730839677825,-500.0,0.00041095,14]
[341365788,1730839677849,-500.0,0.00041095,14]
[341365789,1730839677872,-513.88296897,0.00041095,14]
[341365790,1730839677897,-500.0,0.00041095,14]
[341365791,1730839677921,-500.0,0.00041095,14]
[341365792,1730839677949,-500.0,0.00041095,14]
[341365793,1730839677973,-239.99309145,0.00041095,14]
[341365794,1730839677997,-502.70236609,0.00041095,14]
[341365795,1730839678022,-504.27287054,0.00041095,14]
[341365796,1730839678045,-500.0,0.00041095,14]
[341365797,1730839678069,-500.0,0.00041095,14]
[341365798,1730839678093,-507.06429306,0.00041095,14]
[341365799,1730839678118,-500.0,0.00041095,14]
[341365800,1730839678142,-500.0,0.00041095,14]
[341365801,1730839678165,-455.29956672,0.00041095,14]
[341365802,1730839678189,-500.0,0.00041095,14]
[341365803,1730839678213,-500.0,0.00041095,14]
[341365804,1730839678237,-500.0,0.00041095,14]
[341365805,1730839678261,-500.0,0.00041095,14]
[341365806,1730839678284,-388.6294822,0.00041095,14]
[341365807,1730839678308,-500.0,0.00041095,14]
[341365808,1730839678331,-500.0,0.00041095,14]
[341365809,1730839678355,-162.62527204,0.00041095,14]
[341365810,1730839678380,-500.0,0.00041095,14]
[341365811,1730839678404,-500.0,0.00041095,14]
[341365812,1730839678429,-500.0,0.00041095,14]
[341365813,1730839678453,-345.86998519,0.00041095,14]
[341365814,1730839678477,-500.0,0.00041095,14]
[341365815,1730839678503,-500.0,0.00041095,14]
[341365816,1730839678528,-500.0,0.00041095,14]
[341365817,1730839678552,-500.0,0.00041095,14]
[341365818,1730839678576,-500.0,0.00041095,14]
[341365819,1730839678600,-500.0,0.00041095,14]
[341365820,1730839678623,-500.0,0.00041095,14]
[341365821,1730839678648,-500.0,0.00041095,14]
[341365822,1730839678672,-500.0,0.00041095,14]
[341365823,1730839678697,-500.0,0.00041095,14]
[341365824,1730839678721,-500.0,0.00041095,14]
[341365825,1730839678745,-500.0,0.00041095,14]
[341365826,1730839678769,-508.1639528,0.00041095,14]
[341365827,1730839678793,-500.0,0.00041095,14]
[341365828,1730839678817,-500.0,0.00041095,14]
[341365829,1730839678840,-500.0,0.00041095,14]
[341365830,1730839678864,-500.0,0.00041095,14]
[341365831,1730839678888,-503.40638588,0.00041095,14]
[341365832,1730839678912,-500.0,0.00041095,14]
[341365833,1730839678939,-500.0,0.00041095,14]
[341365834,1730839678963,-506.91648772,0.00041095,14]
[341365835,1730839678986,-505.36300835,0.00041095,14]
[341365836,1730839679010,-500.0,0.00041095,14]
[341365837,1730839679034,-500.0,0.00041095,14]
[341365838,1730839679058,-504.54110512,0.00041095,14]
[341365839,1730839679081,-309.74295944,0.00041095,14]
[341365840,1730839679108,-500.0,0.00041095,14]
[341365841,1730839679132,-405.46832262,0.00041095,14]
[341365842,1730839679155,-568.32150609,0.00041095,14]
[341365843,1730839679181,-500.0,0.00041095,14]
[341365844,1730839679212,-500.0,0.00041095,14]
[341365845,1730839679236,-500.0,0.00041095,14]
[341365846,1730839679261,-500.0,0.00041095,14]
[341365847,1730839679285,-500.0,0.00041095,14]
[341365848,1730839679308,-500.0,0.00041095,14]
[341365849,1730839679332,-500.0,0.00041095,14]
[341365850,1730839679357,-500.0,0.00041095,14]
[341365851,1730839679382,-631.23924294,0.00041095,14]
[341365852,1730839679407,-500.0,0.00041095,14]
[341365853,1730839679437,-500.0,0.00041095,14]
[341365854,1730839679463,-500.0,0.00041095,14]
[341365855,1730839679487,-500.0,0.00041095,14]
[341365856,1730839679512,-500.0,0.00041095,14]
[341365857,1730839679536,-500.0,0.00041095,14]
[341365858,1730839679561,-500.0,0.00041095,14]
[341365859,1730839679589,-500.0,0.00041095,14]
[341365860,1730839679614,-500.0,0.00041095,14]
[341365861,1730839679638,-541.78473439,0.00041095,14]
[341365862,1730839679661,-500.0,0.00041095,14]
[341365863,1730839679687,-500.0,0.00041095,14]
[341365864,1730839679714,-500.0,0.00041095,14]
[341365865,1730839679739,-500.0,0.00041095,14]
[341365866,1730839679766,-500.0,0.00041095,14]
[341365867,1730839679790,-500.0,0.00041095,14]
[341365868,1730839679813,-500.0,0.00041095,14]
[341365869,1730839679839,-500.0,0.00041095,14]
[341365870,1730839679863,-501.51169872,0.00041095,14]
[341365871,1730839679888,-735.35,0.00041095,14]
[341365872,1730839679992,-735.35,0.00041095,14]
[341365873,1730839680024,-735.35,0.00041095,14]
[341365874,1730839680050,-735.35,0.00041095,14]
[341365875,1730839680076,-735.35,0.00041095,14]
[341365876,1730839680100,-500.0,0.00041095,14]
[341365877,1730839680126,-735.35,0.00041095,14]
[341365878,1730839680151,-500.0,0.00041095,14]
[341365879,1730839680178,-735.35,0.00041095,14]
[341365880,1730839680205,-735.35,0.00041095,14]
[341365881,1730839680230,-500.0,0.00041095,14]
[341365882,1730839680257,-735.35,0.00041095,14]
[341365883,1730839680283,-500.0,0.00041095,14]
[341365884,1730839680308,-513.40842967,0.00041095,14]
[341365885,1730839680334,-735.35,0.00041095,14]
[341365886,1730839680359,-500.0,0.00041095,14]
[341365887,1730839680387,-735.35,0.00041095,14]
[341365888,1730839680421,-500.0,0.00041095,14]
[341365889,1730839680455,-735.35,0.00041095,14]
[341365890,1730839680483,-500.0,0.00041095,14]
[341365891,1730839680510,-514.6971034,0.00041095,14]
[341365892,1730839680536,-500.0,0.00041095,14]
[341365893,1730839680561,-500.0,0.00041095,14]
[341365894,1730839680586,-500.0,0.00041095,14]
[341365895,1730839680611,-325.06180817,0.00041095,14]
[341365896,1730839680635,-500.0,0.00041095,14]
[341365897,1730839680659,-500.0,0.00041095,14]
[341365898,1730839680685,-500.0,0.00041095,14]
[341365899,1730839680710,-500.0,0.00041095,14]
[341365900,1730839680734,-506.43597864,0.00041095,14]
[341365901,1730839680758,-500.0,0.00041095,14]
[341365902,1730839680782,-500.0,0.00041095,14]
[341365903,1730839680806,-500.0,0.00041095,14]
[341365904,1730839680830,-500.0,0.00041095,14]
[341365905,1730839680854,-500.0,0.00041095,14]
[341365906,1730839680878,-500.0,0.00041095,14]
[341365907,1730839680902,-504.43108934,0.00041095,14]
[341365908,1730839680926,-500.0,0.00041095,14]
[341365909,1730839680961,-735.35,0.00041194,14]
[341365910,1730839680985,-277.55677165,0.00041195,14]
[341365911,1730839681010,-500.0,0.00041195,14]
[341365912,1730839681036,-500.0,0.00041195,14]
[341365913,1730839681060,-500.0,0.00041195,14]
[341365914,1730839681084,-500.0,0.00041195,14]
[341365915,1730839681109,-500.0,0.00041195,14]
[341365916,1730839681139,-500.0,0.00041195,14]
[341365917,1730839681163,-500.0,0.00041195,14]
[341365918,1730839681190,-500.0,0.00041195,14]
[341365919,1730839681216,-500.0,0.00041195,14]
[341365920,1730839681241,-500.0,0.00041195,14]
[341365921,1730839681266,-599.32,0.00041205,14]
[341365922,1730839681290,-608.18077865,0.00041206,14]
[341365923,1730839681314,-500.0,0.00041206,14]
[341365924,1730839681338,-500.0,0.00041428,10]
[341365925,1730839681362,-500.0,0.0004188,10]
[341365926,1730839681387,-500.0,0.0004188,10]
[341365927,1730839681413,-500.0,0.00041899,14]
[341365928,1730839681439,-678.67176946,0.000419,28]
[341365929,1730839681462,-3451.4394282,0.000419,120]
[341365930,1730839681486,-500.0,0.00041973,10]
[341365931,1730839681510,-391.37407504,0.00041973,10]
[341365932,1730839681537,-735.35,0.00041994,14]
[341365933,1730839681562,-500.0,0.00041995,14]
[341365934,1730839681586,-500.0,0.00041995,14]
[341365935,1730839681611,-500.0,0.00041995,14]
[341365936,1730839681637,-500.0,0.00041995,10]
[341365937,1730839681666,-500.0,0.00041995,14]
[341365938,1730839681692,-500.0,0.00041995,14]
[341365939,1730839681717,-500.0,0.00041995,14]
[341365940,1730839681741,-440.4,0.00041995,14]
[341365941,1730839681766,-318.02430715,0.00041995,14]
[341365942,1730839681790,-500.0,0.00041997,14]
[341365943,1730839681815,-500.0,0.00041997,14]
[341365944,1730839681840,-500.0,0.00041997,14]
[341365945,1730839681865,-500.0,0.00041997,14]
[341365946,1730839681891,-500.0,0.00041997,14]
[341365947,1730839681916,-500.0,0.00041997,14]
[341365948,1730839681944,-260.49711731,0.00041998,14]
[341365949,1730839681969,-500.0,0.00041998,14]
[341365950,1730839681995,-500.0,0.00041998,14]
[341365951,1730839682021,-500.0,0.00041998,14]
[341365952,1730839682048,-403.2,0.00041998,14]
[341365953,1730839682075,-735.35,0.00041998,14]
[341365954,1730839682100,-500.0,0.00041999,14]
[341365955,1730839682125,-325.06898209,0.00041999,14]
[341365956,1730839682242,-500.0,0.00041999,14]
[341365957,1730839682272,-500.0,0.00041999,14]
[341365958,1730839682298,-500.0,0.00041999,14]
[341365959,1730839682324,-500.0,0.00041999,14]
[341365960,1730839682349,-1000.0,0.00041999,120]
[341365961,1730839682374,-500.0,0.00041999,14]
[341365962,1730839682399,-500.0,0.00041999,14]
[341365963,1730839682423,-558.33770051,0.00041999,14]
[341365964,1730839682451,-735.35,0.00041999,14]
[341365965,1730839682477,-735.35,0.00041999,14]
[341365966,1730839682503,-735.35,0.00041999,14]
[341365967,1730839682529,-735.35,0.00041999,14]
[341365968,1730839682554,-735.35,0.00041999,14]
[341365969,1730839682579,-735.35,0.00041999,14]
[341365970,1730839682604,-735.35,0.00041999,14]
[341365971,1730839682629,-735.35,0.00041999,14]
[341365972,1730839682669,-735.37,0.00041999,14]
[341365973,1730839682699,-1648569.46743683,0.00042,30]
[341365974,1730839711098,-504.26874824,0.00041095,14]
[341365975,1730839711124,-506.6102976,0.00041095,14]
[341365976,1730839711149,-500.0,0.00041095,14]
[341365977,1730839711172,-500.0,0.00041095,14]
[341365978,1730839711197,-500.0,0.00041095,14]
[341365979,1730839711224,-500.0,0.00041095,14]
[341365980,1730839711249,-500.0,0.00041095,14]
[341365981,1730839711274,-290.51172518,0.00041095,14]
[341365982,1730839711298,-500.0,0.00041095,14]
[341365983,1730839711322,-500.0,0.00041095,14]
[341365984,1730839711347,-509.50211494,0.00041095,14]
[341365985,1730839711371,-501.54412618,0.00041095,14]
[341365986,1730839711396,-500.0,0.00041095,14]
[341365987,1730839711421,-174.86,0.0004199,10]
[341365988,1730839711446,-180.69,0.0004199,10]
[341365989,1730839711473,-150.58,0.0004199,10]
[341365990,1730839711498,-1993181.43298786,0.00042,30]
[341365991,1730839722697,-598.54732222,0.00041095,14]
[341365992,1730839722724,-500.0,0.00041095,14]
[341365993,1730839722749,-500.0,0.00041095,14]
[341365994,1730839722773,-500.0,0.00041095,14]
[341365995,1730839722799,-500.0,0.00041973,10]
[341365996,1730839722823,-500.0,0.00041973,10]
[341365997,1730839722848,-500.37269111,0.00041973,10]
[341365998,1730839722873,-500.0,0.00041973,10]
[341365999,1730839722899,-752.92,0.0004199,10]
[341366000,1730839722926,-1995148.15998667,0.00042,30]
[341366001,1730839729337,520.83333333,0.00020816,2]
[341366002,1730839731706,-500.0,0.00041095,14]
[341366003,1730839731736,-500.0,0.00041095,14]
[341366004,1730839731761,-500.0,0.00041095,14]
[341366005,1730839731787,-500.0,0.00041095,14]
[341366006,1730839731813,-1998000.0,0.00042,30]
[341366007,1730839746091,-8906.0367582,0.00026961,2]
[341366008,1730839746114,-3088.34203244,0.00027572,2]
[341366009,1730839746134,-3000.0,0.000287,2]
[341366010,1730839746156,-3000.0,0.0002871,2]
[341366011,1730839746178,-3000.0,0.0002872,2]
[341366012,1730839746198,-3000.0,0.0002873,2]
[341366013,1730839746219,-3000.0,0.0002874,2]
[341366014,1730839746240,-3000.0,0.0002875,2]
[341366015,1730839746267,-3000.0,0.0002876,2]
[341366016,1730839746287,-3000.0,0.0002877,2]
[341366017,1730839746309,-3000.0,0.0002878,2]
[341366018,1730839746329,-3000.0,0.0002879,2]
[341366019,1730839746353,-3000.0,0.000288,2]
[341366020,1730839746374,-3000.0,0.0002881,2]
[341366021,1730839746397,-4892.620289,0.0002882,2]
[341366022,1730839746419,-175.22003283,0.00032777,2]
[341366023,1730839746441,-165.0,0.00033,2]
[341366024,1730839749097,-165.0,0.00034521,2]
[341366025,1730839749119,-169.018561,0.00034856,2]
[341366026,1730839749143,-169.018561,0.00034885,2]
[341366027,1730839749164,-169.018561,0.00034914,2]
[341366028,1730839749185,-169.018561,0.00034943,2]
[341366029,1730839749208,-169.018561,0.00034972,2]
[341366030,1730839749230,-169.018561,0.00035001,2]
[341366031,1730839749251,-169.018561,0.0003503,2]
[341366032,1730839751262,-153.429887,0.00035736,2]
[341366033,1730839751282,-153.429887,0.00036629,2]
[341366034,1730839752479,509.00382716,0.0002867,2]
[341366035,1730839757475,509.00382709,0.0003056,2]
[341366036,1730839762465,509.00382709,0.0003245,2]
[341366037,1730839767661,509.00382709,0.0003434,2]
[341366038,1730839772440,509.00382709,0.0003623,2]
[341366039,1730839772543,500.0,0.00028709,2]
[341366040,1730839772602,500.0,0.00028709,2]
[341366041,1730839772647,500.0,0.00028709,2]
[341366042,1730839772732,500.0,0.00028709,2]
[341366043,1730839772771,6.93969489,0.00028709,2]
[341366044,1730839772792,493.06030511,0.00028709,2]
[341366045,1730839772826,512.78162175,0.00028709,2]
[341366046,1730839773509,185.01265606,0.00028709,2]
[341366047,1730839773560,500.0,0.00028709,2]
[341366048,1730839773725,460.86514013,0.00028709,2]
[341366049,1730839773783,184.33424174,0.00028709,2]
[341366050,1730839775186,338.27084544,0.00028709,2]
[341366051,1730839781688,205.719,0.0003,2]
[341366052,1730839781862,205.719,0.00034242,2]
[341366053,1730839782441,164.525,0.0003,2]
[341366054,1730839787122,240.4225,0.0003,2]
[341366055,1730839787342,240.4225,0.00034276,2]
[341366056,1730839811089,831.50437063,0.00035736,2]
[341366057,1730839811112,634.88894437,0.00035736,2]
[341366058,1730839811139,500.0,0.00028709,2]
[341366059,1730839811180,500.0,0.00028709,2]
[341366060,1730839811213,500.0,0.00028709,2]
[341366061,1730839811242,500.0,0.00028709,2]
[341366062,1730839811381,1466.393315,0.00036182,2]
[341366063,1730839811522,387.33771188,0.00028709,2]
[341366064,1730839811545,112.66228812,0.00028709,2]
[341366065,1730839811572,500.0,0.00028709,2]
[341366066,1730839811598,500.0,0.00028709,2]
[341366067,1730839811629,500.0,0.00028709,2]
[341366068,1730839811668,500.0,0.00028709,2]
[341366069,1730839811698,500.0,0.00028709,2]
[341366070,1730839811736,500.0,0.00028709,2]
[341366071,1730839811776,198.61563642,0.00028709,2]
[341366072,1730839811800,301.38436358,0.00028709,2]
[341366073,1730839811826,500.0,0.00028709,2]
[341366074,1730839811855,500.0,0.00028709,2]
[341366075,1730839811881,500.0,0.00028709,2]
[341366076,1730839811911,334.15164767,0.00028709,2]
[341366135,1730839831874,-165.84835233,0.00028709,2]
[341366137,1730839831885,-500.0,0.00028709,2]
[341366139,1730839831895,-600.0,0.00028709,2]
[341366141,1730839831906,-500.0,0.00028709,2]
[341366143,1730839831915,-500.0,0.00028709,2]
[341366144,1730839831925,-500.0,0.00028709,2]
[341366145,1730839831935,-500.0,0.00028709,2]
[341366147,1730839831944,-212.63661683,0.00028709,2]
[341366240,1730839838016,-310.1608405,0.000288,5]
[341366241,1730839838141,-190.72029429,0.000288,5]
[341366242,1730839838151,-570.00975429,0.00035736,2]
[341366243,1730839838177,-517.33425971,0.00035736,2]
[341366244,1730839838189,-272.88,0.00036,2]
[341366245,1730839838199,-1087.344014,0.00036182,2]
[341366246,1730839838208,-14379.0103563,0.00036627,2]
[341366247,1730839838219,-500.0,0.00036628,15]
[341366248,1730839838229,-500.0,0.00036628,15]
[341366249,1730839838239,-500.0,0.00036628,15]
[341366250,1730839838250,-500.0,0.00036628,15]
[341366251,1730839838260,-500.0,0.00036628,7]
[341366252,1730839838270,-500.0,0.00036628,15]
[341366253,1730839838281,-500.0,0.00036628,15]
[341366254,1730839838291,-283.00763503,0.00036628,15]
[341366255,1730839838301,-500.0,0.00036628,15]
[341366256,1730839838312,-500.0,0.00036628,15]
[341366257,1730839838322,-527.24145104,0.00036628,7]
[341366258,1730839838333,-500.0,0.00036628,15]
[341366259,1730839838343,-500.0,0.00036628,15]
[341366260,1730839838352,-500.0,0.00036628,15]
[341366261,1730839838362,-500.0,0.00036628,15]
[341366262,1730839838372,-159.00817568,0.00036628,15]
[341366263,1730839838381,-500.0,0.00036628,15]
[341366264,1730839838400,-500.0,0.00036628,15]
[341366265,1730839838411,-500.0,0.00036628,7]
[341366266,1730839838421,-500.0,0.00036628,15]
[341366267,1730839838431,-500.0,0.00036628,15]
[341366268,1730839838441,-500.0,0.00036628,15]
[341366269,1730839838452,-500.0,0.00036628,15]
[341366270,1730839838462,-500.0,0.00036628,15]
[341366271,1730839838472,-500.0,0.00036628,15]
[341366272,1730839838482,-500.0,0.00036628,15]
[341366273,1730839838492,-500.0,0.00036628,15]
[341366274,1730839838501,-500.0,0.00036628,15]
[341366275,1730839838511,-500.0,0.00036628,15]
[341366276,1730839838521,-500.0,0.00036628,15]
[341366277,1730839838531,-500.0,0.00036628,15]
[341366278,1730839838541,-500.0,0.00036628,15]
[341366279,1730839838550,-500.0,0.00036628,15]
[341366280,1730839838562,-500.0,0.00036628,15]
[341366281,1730839838571,-500.0,0.00036628,15]
[341366282,1730839838580,-169.90520703,0.00036628,15]
[341366283,1730839838590,-500.0,0.00036628,15]
[341366284,1730839838599,-500.0,0.00036628,15]
[341366285,1730839838609,-500.0,0.00036628,15]
[341366286,1730839838620,-500.0,0.00036628,15]
[341366287,1730839838629,-500.0,0.00036628,15]
[341366288,1730839838639,-500.0,0.00036628,15]
[341366289,1730839838649,-500.0,0.00036628,15]
[341366290,1730839838658,-500.0,0.00036628,15]
[341366291,1730839838668,-500.0,0.00036628,15]
[341366292,1730839838678,-500.0,0.00036628,15]
[341366293,1730839838687,-500.0,0.00036628,15]
[341366294,1730839838697,-520.32657763,0.00036628,15]
[341366295,1730839838708,-1466.393315,0.00036629,2]
[341366296,1730839838718,-1087.344014,0.00036629,2]
[341366297,1730839838728,-1466.393315,0.00037076,2]
[341366298,1730839838737,-1087.344014,0.00037076,2]
[341366299,1730839838748,-153.429887,0.00037522,2]
[341366300,1730839838757,-1466.393315,0.00037522,2]
[341366301,1730839838766,-1087.344014,0.00037522,2]
[341366302,1730839838776,-498.0,0.00038071,3]
[341366303,1730839838786,-509.00382709,0.0003812,2]
[341366304,1730839838795,-192.588683,0.00038155,120]
[341366305,1730839838805,-166.7048841,0.00038656,7]
[341366306,1730839838815,-272.88,0.00039,2]
[341366307,1730839838825,-509.5708628,0.000399,2]
[341366308,1730839838835,-509.00382709,0.0004001,28]
[341366309,1730839838844,-600.0,0.00040319,2]
[341366310,1730839838854,-509.5708628,0.000404,3]
[341366311,1730839838864,-500.0,0.0004051,5]
[341366312,1730839838874,-600.0,0.00040739,2]
[341366313,1730839838884,-509.5708628,0.000409,3]
[341366314,1730839838893,-550.0,0.00041072,30]
[341366315,1730839838903,-550.0,0.00041072,5]
[341366316,1730839838912,-500.0,0.00041073,5]
[341366317,1730839838921,-500.8436675,0.00041073,5]
[341366318,1730839838931,-500.0,0.00041073,5]
[341366319,1730839838941,-500.0,0.00041073,5]
[341366320,1730839838950,-263.39049237,0.00041073,5]
[341366321,1730839838960,-500.0,0.00041073,5]
[341366322,1730839838970,-500.0,0.00041094,7]
[341366323,1730839838979,-500.0,0.00041094,2]
[341366324,1730839838989,-500.0,0.00041094,7]
[341366325,1730839839003,-500.0,0.00041094,7]
[341366326,1730839839018,-500.0,0.00041094,7]
[341366327,1730839839028,-999.0,0.00041094,120]
[341366328,1730839839037,-1000.0,0.00041094,2]
[341366329,1730839839048,-1000.0,0.00041094,2]
[341366330,1730839839059,-1000.0,0.00041094,2]
[341366331,1730839839069,-1000.0,0.00041094,2]
[341366332,1730839839079,-1000.0,0.00041094,2]
[341366333,1730839839089,-1000.0,0.00041094,2]
[341366334,1730839839099,-176.03445442,0.00041094,2]
[341366335,1730839839109,-500.0,0.00041095,7]
[341366336,1730839839119,-500.0,0.00041095,2]
[341366337,1730839839129,-398.48187561,0.00041095,14]
[341366338,1730839839138,-502.42782202,0.00041095,14]
[341366339,1730839839148,-504.38939481,0.00041095,14]
[341366340,1730839839157,-501.58794919,0.00041095,14]
[341366341,1730839839167,-506.24228222,0.00041095,14]
[341366342,1730839839177,-500.0,0.00041095,14]
[341366343,1730839839186,-500.0,0.00041095,14]
[341366344,1730839839196,-500.0,0.00041095,14]
[341366345,1730839839206,-500.0,0.00041095,14]
[341366346,1730839839215,-500.0,0.00041095,14]
[341366347,1730839839226,-500.0,0.00041095,14]
[341366348,1730839839235,-627.28827482,0.00041095,14]
[341366349,1730839839245,-500.0,0.00041095,14]
[341366350,1730839839255,-500.0,0.00041095,14]
[341366352,1730839839363,-500.0,0.00041095,14]
[341366353,1730839839373,-500.0,0.00041095,14]